bitfinex/quotes_ETHUSD_20240713
["timestamp","ask_amount","ask_price","bid_price","bid_amount"]
[1720838012361,1.44048513,3131.5,3131.4,0.17304779]
[1720838012564,1.78458864,3131.5,3131.4,0.17304779]
[1720838012927,1.78458864,3131.5,3131.2,0.816]
[1720838013125,0.67821598,3131.5,3131.4,0.17304779]
[1720838013338,1.78463345,3131.5,3131.2,0.816]
[1720838013548,0.67821598,3131.5,3131.4,0.17304779]
[1720838013867,3.06991598,3131.5,3131.4,0.17304779]
[1720838014153,3.83223256,3131.5,3131.0,0.816]
[1720838014357,2.72581247,3131.5,3131.4,0.17304779]
[1720838014506,3.83233676,3131.5,3131.0,0.816]
[1720838014716,2.72581247,3131.5,3131.4,0.17304779]
[1720838015011,2.72581247,3131.5,3131.1,0.17330176]
[1720838015012,3.83232065,3131.5,3131.1,0.17330176]
[1720838015257,3.43984355,3131.4,3131.1,0.17330176]
[1720838015554,1.10650505,3131.3,3131.1,0.17330176]
[1720838015753,1.10650505,3131.2,3131.0,0.816]
[1720838016049,3.10609552,3131.1,3131.0,0.816]
[1720838016208,2.3917,3131.1,3130.8,0.816]
[1720838016406,3.1060294,3131.0,3130.8,0.816]
[1720838016623,1.10655657,3130.9,3130.8,0.816]
[1720838018046,1.10655753,3130.9,3130.8,0.816]
[1720838018455,1.10657343,3130.9,3130.8,0.816]
[1720838021452,2.77152662,3130.9,3130.8,0.816]
[1720838021841,0.33410849,3131.2,3130.8,0.816]
[1720838022037,1.10650133,3130.9,3130.8,7.115288]
[1720838022332,1.10650133,3130.9,3130.8,7.931288]
[1720838024338,1.66618108,3131.2,3131.0,2.2357]
[1720838024542,1.10633713,3131.1,3131.0,6.8098]
[1720838024770,1.10633713,3131.1,3131.0,8.3372988]
[1720838025271,0.33410849,3131.2,3131.1,4.47126]
[1720838025570,1.44041388,3131.2,3131.1,6.80966]
[1720838025769,1.10625455,3131.2,3131.1,6.80966]
[1720838026270,1.10625455,3131.2,3131.1,6.98299021]
[1720838026569,1.10625455,3131.2,3131.1,7.4964618]
[1720838028050,1.33207259,3131.3,3131.2,4.47112]
[1720838028364,1.10626588,3131.3,3131.2,5.28712]
[1720838028576,1.33207259,3131.4,3131.3,4.47098]
[1720838028875,2.43896787,3131.4,3131.3,4.47098]
[1720838029383,2.77214266,3131.4,3131.3,4.64414089]
[1720838030560,1.10626628,3131.4,3131.3,4.64414089]
[1720838030956,2.77266856,3131.4,3131.3,4.64414089]
[1720838031978,2.77269065,3131.4,3131.3,4.64414089]
[1720838035379,0.33411056,3131.6,3131.5,2.23535]
[1720838035576,1.44038148,3131.6,3131.5,3.05135]
[1720838035792,1.44037564,3131.6,3131.5,3.05135]
[1720838035991,1.44037564,3131.6,3131.5,3.22434159]
[1720838037579,1.44034361,3131.6,3131.5,3.22434159]
[1720838038298,1.44034361,3131.6,3131.5,5.45969159]
[1720838038495,3.10682928,3131.6,3131.5,5.45969159]
[1720838038990,3.10680091,3131.6,3131.5,5.45969159]
[1720838041589,3.10623636,3131.6,3131.5,5.45969159]
[1720838042082,3.10623636,3131.6,3131.5,5.2867]
[1720838042448,3.10623636,3131.6,3131.5,5.45964876]
[1720838042693,1.44030183,3131.6,3131.5,5.45964876]
[1720838042854,1.44030183,3131.6,3131.5,7.92994876]
[1720838043051,3.10623636,3131.6,3131.5,7.92994876]
[1720838043282,1.44030183,3131.6,3131.5,7.92994876]
[1720838043663,1.10619127,3131.6,3131.5,7.92994876]
[1720838043865,2.43883534,3131.6,3131.5,7.92994876]
[1720838044890,0.33409239,3132.0,3131.8,2.2351]
[1720838045186,1.10615043,3131.9,3131.8,3.0511]
[1720838045393,0.33409239,3132.0,3131.8,3.0511]
[1720838045598,3.10504208,3131.9,3131.6,3.05121]
[1720838045886,2.4728,3131.7,3131.6,3.05121]
[1720838046187,5.57780066,3131.7,3131.6,3.05121]
[1720838047358,5.57780066,3131.7,3131.6,2.23521]
[1720838048176,2.4728,3131.7,3131.6,2.23521]
[1720838048363,5.57768292,3131.7,3131.6,2.23521]
[1720838049593,6.13545121,3131.7,3131.6,2.23521]
[1720838050885,5.57768292,3131.7,3131.6,2.23521]
[1720838051798,3.10490208,3131.7,3131.6,2.23521]
[1720838052759,3.10490208,3131.7,3131.4,5.28672]
[1720838053059,1.10631122,3131.6,3131.5,2.23533]
[1720838053261,1.10631122,3131.6,3131.5,2.40826146]
[1720838054964,1.10632054,3131.6,3131.5,2.40826146]
[1720838055165,1.10632054,3131.6,3131.5,0.17293146]
[1720838055366,2.4728,3131.9,3131.5,0.17293146]
[1720838055566,2.4728,3131.9,3131.6,0.816]
[1720838055567,1.99865363,3131.7,3131.6,0.816]
[1720838055869,3.1049692,3131.7,3131.6,0.816]
[1720838056074,3.1049692,3131.7,3131.6,0.98885505]
[1720838057859,1.99865363,3131.7,3131.6,0.98885505]
[1720838058060,3.10497775,3131.7,3131.6,0.98885505]
[1720838058285,0.28068924,3131.8,3131.6,0.98885505]
[1720838058462,3.10494454,3131.7,3131.6,0.98885505]
[1720838059598,1.10631933,3131.7,3131.6,0.98885505]
[1720838059788,3.10490378,3131.7,3131.6,0.98885505]
[1720838060768,1.10631647,3131.7,3131.6,0.98885505]
[1720838061774,0.28068924,3131.8,3131.6,0.98885505]
[1720838061976,1.10632132,3131.7,3131.6,0.98885505]
[1720838062377,4.0549004,3131.7,3131.6,0.17285505]
[1720838062703,6.38688062,3131.7,3131.6,0.17285505]
[1720838062870,6.38688062,3131.7,3131.4,0.816]
[1720838063219,5.2805593,3131.7,3131.6,0.17285343]
[1720838063399,6.38698239,3131.7,3131.6,0.17285343]
[1720838063568,6.72109403,3131.7,3131.5,0.17293807]
[1720838063769,1.80660142,3131.6,3131.4,0.816]
[1720838063968,1.10642309,3131.5,3131.4,0.816]
[1720838064683,1.10642309,3131.5,3131.1,2.23563]
[1720838064887,3.10615707,3131.4,3131.3,0.816]
[1720838065066,0.70017833,3131.6,3131.3,0.816]
[1720838065271,2.00010854,3131.4,3131.3,0.816]
[1720838065504,3.10652046,3131.4,3131.1,2.23563]
[1720838065730,1.10643736,3131.3,3130.9,2.23571]
[1720838065867,5.43590673,3131.2,3131.0,0.816]
[1720838066069,1.65002803,3131.1,3131.0,0.816]
[1720838066270,3.10650673,3131.1,3131.0,0.816]
[1720838067116,1.10643736,3131.1,3131.0,0.816]
[1720838067410,3.10650673,3131.1,3131.0,0.816]
[1720838067789,1.10643736,3131.1,3131.0,0.816]
[1720838067991,2.3294,3131.4,3131.0,0.816]
[1720838068202,2.00041009,3131.1,3131.0,0.816]
[1720838068377,2.3294,3131.4,3131.0,0.816]
[1720838068569,2.00031732,3131.2,3131.0,0.816]
[1720838068774,1.10645791,3131.1,3131.0,0.816]
[1720838069529,1.10645791,3131.1,3131.0,3.356871]
[1720838069732,1.10645791,3131.1,3131.0,3.0517]
[1720838071328,1.10645791,3131.1,3131.0,3.22506136]
[1720838071743,1.10642894,3131.1,3131.0,3.22506136]
[1720838075007,2.3294,3131.5,3131.0,3.22506136]
[1720838075207,1.99951821,3131.3,3131.2,0.816]
[1720838075414,3.10595903,3131.3,3131.2,0.816]
[1720838075618,3.10588937,3131.3,3131.2,0.98922743]
[1720838075844,1.10644099,3131.3,3131.2,0.98922743]
[1720838076007,1.68329407,3131.3,3131.2,0.98922743]
[1720838076341,4.01269407,3131.3,3131.2,0.17322743]
[1720838078016,2.90625308,3131.3,3131.2,0.17322743]
[1720838078230,3.43589389,3131.3,3131.2,0.17322743]
[1720838078417,2.3294,3131.3,3131.2,0.17322743]
[1720838078754,3.10559759,3131.3,3131.2,0.17322743]
[1720838080236,1.10646968,3131.3,3131.2,0.17322743]
[1720838080709,1.10646968,3131.3,3131.2,2.40878743]
[1720838081225,2.77267281,3131.3,3131.2,2.40878743]
[1720838081648,2.77267281,3131.3,3131.2,4.68788743]
[1720838081942,0.33411795,3131.4,3131.3,2.23549]
[1720838082161,1.44042224,3131.4,3131.3,3.05149]
[1720838082458,1.44042224,3131.4,3131.3,3.22466406]
[1720838085344,3.44020378,3131.4,3131.3,3.22466406]
[1720838085549,3.44020394,3131.4,3131.3,3.22466406]
[1720838085800,0.33411795,3131.4,3131.3,3.22466406]
[1720838085961,1.44044851,3131.4,3131.3,3.22466406]
[1720838088376,2.3294,3131.9,3131.4,2.2354]
[1720838088663,0.23294,3131.8,3131.4,2.2354]
[1720838088869,2.33440305,3131.7,3131.5,0.17295617]
[1720838089160,1.10636876,3131.6,3131.5,0.17295617]
[1720838092157,1.10633298,3131.6,3131.5,0.17295617]
[1720838092336,3.44179966,3131.6,3131.5,0.17295617]
[1720838092526,1.47380695,3131.6,3131.5,0.17295617]
[1720838095663,1.4738302,3131.6,3131.5,0.17295617]
[1720838095974,0.36747397,3131.6,3131.5,0.17295617]
[1720838096173,1.10635614,3131.6,3131.5,0.17295617]
[1720838097550,3.44181013,3131.6,3131.5,0.17295617]
[1720838097746,1.10635806,3131.6,3131.5,0.17295617]
[1720838098674,1.10636178,3131.6,3131.5,0.17295617]
[1720838099074,0.23294,3131.8,3131.5,0.17295617]
[1720838099275,3.73160309,3131.7,3131.5,0.17295617]
[1720838099453,1.10635468,3131.6,3131.5,0.17295617]
[1720838101781,1.10632308,3131.6,3131.5,0.17295617]
[1720838101976,1.10632308,3131.6,3131.5,2.40830617]
[1720838102182,1.10632308,3131.6,3131.5,0.17295617]
[1720838102782,1.10632308,3131.6,3131.5,2.40830617]
[1720838105079,0.33410516,3131.9,3131.5,2.40830617]
[1720838105281,1.10632401,3131.6,3131.5,2.40830617]
[1720838105484,3.44221259,3131.8,3131.5,2.40830617]
[1720838105687,1.10632401,3131.7,3131.5,2.40830617]
[1720838105876,1.10632401,3131.6,3131.5,2.40830617]
[1720838107183,1.10631835,3131.6,3131.5,2.40830617]
[1720838107682,1.10631835,3131.6,3131.5,4.64365617]
[1720838108209,0.33410516,3131.9,3131.6,2.23527]
[1720838108510,0.33410516,3131.9,3131.8,2.23513]
[1720838108672,1.44030324,3131.9,3131.8,2.23513]
[1720838108866,1.44032645,3131.9,3131.8,2.40783392]
[1720838109866,1.44032645,3131.9,3131.8,3.22383392]
[1720838111369,0.33410516,3131.9,3131.8,3.22383392]
[1720838112100,1.44031836,3131.9,3131.8,3.22383392]
[1720838112702,0.33410516,3131.9,3131.8,3.22383392]
[1720838112899,1.44031841,3131.9,3131.8,3.22383392]
[1720838115710,1.44036166,3131.9,3131.8,3.22383392]
[1720838116075,1.44036301,3131.9,3131.8,3.22383392]
[1720838116305,1.44036301,3131.9,3131.8,2.40783392]
[1720838118100,8.3212404,3131.9,3131.8,0.17270392]
[1720838118275,6.3510462,3131.9,3131.8,0.17270392]
[1720838118475,9.3510462,3131.9,3131.8,0.17270392]
[1720838118694,9.3510462,3131.9,3130.2,2.3514]
[1720838118695,2.443,3131.8,3130.8,0.816]
[1720838118906,2.00083102,3131.0,3130.8,3.05178]
[1720838119106,2.00083102,3131.0,3130.9,2.23577]
[1720838119321,1.10655027,3131.0,3130.9,4.47154]
[1720838119608,1.10655027,3131.0,3130.9,4.63857478]
[1720838120571,2.77389905,3131.0,3130.9,4.63857478]
[1720838120776,2.77389905,3131.0,3130.9,5.41917226]
[1720838120977,1.10655027,3131.0,3130.9,5.41917226]
[1720838121481,2.77389905,3131.0,3130.9,5.41917226]
[1720838121787,1.10655027,3131.0,3130.9,5.41917226]
[1720838122008,2.77389905,3131.0,3130.9,5.41917226]
[1720838122218,0.33412322,3131.6,3131.1,2.23558]
[1720838122511,0.33412322,3131.6,3131.1,3.05158]
[1720838122512,2.00093898,3131.3,3131.1,3.05158]
[1720838122686,1.10641372,3131.2,3131.1,3.05158]
[1720838123005,1.10641558,3131.2,3131.1,3.05158]
[1720838124410,1.10641558,3131.2,3131.1,2.23558]
[1720838125708,1.10643468,3131.2,3131.1,2.23558]
[1720838126201,1.1064357,3131.2,3131.1,2.23558]
[1720838128616,3.10760766,3131.2,3131.1,2.23558]
[1720838128784,3.1072628,3131.2,3131.1,2.23558]
[1720838128984,1.10643697,3131.2,3131.1,2.23558]
[1720838129181,3.10726259,3131.2,3131.1,2.23558]
[1720838129708,1.65015323,3131.2,3130.7,2.23585]
[1720838129878,2.00061233,3131.0,3130.8,2.23583]
[1720838130082,3.1070493,3130.9,3130.8,2.23583]
[1720838130490,1.10643697,3130.9,3130.8,2.23583]
[1720838131518,1.10643697,3130.9,3130.8,2.40303883]
[1720838132283,2.3299,3131.4,3130.8,2.40303883]
[1720838132502,1.10655724,3130.9,3130.8,2.40303883]
[1720838135686,1.99949375,3131.0,3130.8,2.40303883]
[1720838135881,1.10655989,3130.9,3130.8,2.40303883]
[1720838136323,1.10655218,3130.9,3130.8,2.40303883]
[1720838139183,0.23299,3131.3,3130.8,2.40303883]
[1720838139435,1.99813989,3131.1,3130.8,2.40303883]
[1720838139598,1.10657352,3131.0,3130.8,2.40303883]
[1720838139798,1.10657352,3130.9,3130.8,2.23583]
[1720838140321,1.10657352,3130.9,3130.8,2.40306619]
[1720838142623,1.9980038,3131.1,3130.9,2.23574]
[1720838142832,1.10655613,3131.0,3130.8,0.16723619]
[1720838142997,1.10655613,3130.9,3130.7,2.23585]
[1720838143202,1.66499634,3130.8,3130.7,2.23585]
[1720838143522,2.77155247,3130.8,3130.7,2.23585]
[1720838144290,1.10655613,3130.8,3130.7,2.23585]
[1720838145637,2.77155247,3130.8,3130.7,2.23585]
[1720838145800,1.10655613,3130.8,3130.7,2.23585]
[1720838145996,1.66480581,3130.9,3130.7,2.23585]
[1720838146300,1.10655835,3130.8,3130.7,2.40317088]
[1720838147914,2.43840835,3130.8,3130.7,6.92089088]
[1720838148125,1.10655835,3130.8,3130.7,7.24280797]
[1720838148609,1.10655835,3130.8,3130.7,9.47872797]
[1720838148814,1.33185,3131.2,3131.1,2.23563]
[1720838149003,1.10636454,3131.2,3131.1,3.05163]
[1720838149332,0.33412322,3131.6,3131.2,2.23549]
[1720838149553,1.66495559,3131.3,3131.2,2.23549]
[1720838149706,2.77134546,3131.3,3131.2,2.23549]
[1720838149906,2.77134528,3131.3,3131.2,2.23549]
[1720838152717,1.998131,3131.5,3131.3,2.23545]
[1720838152919,1.10638954,3131.4,3131.3,2.23545]
[1720838156240,1.1063848,3131.4,3131.3,2.23545]
[1720838157811,0.33412322,3131.6,3131.4,2.23542]
[1720838158013,3.10467945,3131.5,3131.4,2.23542]
[1720838159336,1.10638701,3131.5,3131.4,2.23542]
[1720838159540,0.33412322,3131.6,3131.4,2.23542]
[1720838159726,1.10638723,3131.5,3131.4,2.23542]
[1720838160347,1.1063847,3131.5,3131.4,2.23542]
[1720838161250,1.1063847,3131.5,3131.4,2.40214015]
[1720838162141,0.33412322,3131.6,3131.4,2.40214015]
[1720838162327,1.10640038,3131.5,3131.4,2.40214015]
[1720838162736,1.10640003,3131.5,3131.4,2.40214015]
[1720838164814,1.10639839,3131.5,3131.4,2.40214015]
[1720838165547,2.66636011,3131.6,3131.4,2.40214015]
[1720838165725,1.10639803,3131.5,3131.4,2.40214015]
[1720838169052,0.33412322,3131.6,3131.5,2.23535]
[1720838169249,3.77427719,3131.6,3131.5,2.23535]
[1720838169550,4.38640491,3131.6,3131.5,2.40197987]
[1720838171620,0.94625094,3131.6,3131.5,2.40197987]
[1720838171819,3.77428508,3131.6,3131.5,2.40197987]
[1720838172650,0.33412322,3131.6,3131.5,2.39197987]
[1720838172850,3.77425342,3131.6,3131.5,2.39197987]
[1720838173055,0.33412322,3131.6,3131.5,2.39197987]
[1720838173255,2.66791536,3131.6,3131.5,2.39197987]
[1720838173456,3.77431317,3131.6,3131.5,2.39197987]
[1720838175584,0.33412322,3131.6,3131.5,2.39197987]
[1720838175745,2.66779398,3131.6,3131.5,2.39197987]
[1720838175943,0.33412322,3131.6,3131.5,2.39197987]
[1720838176268,3.77419301,3131.6,3131.5,2.39197987]
[1720838178036,3.7743034,3131.6,3131.5,2.39197987]
[1720838179431,2.66806712,3131.6,3131.5,2.39197987]
[1720838179632,3.77446591,3131.6,3131.5,2.39197987]
[1720838179897,3.10707144,3131.6,3131.5,4.86407987]
[1720838180536,1.10639879,3131.6,3131.5,4.86407987]
[1720838180739,1.10639879,3131.6,3131.5,7.09942987]
[1720838181779,3.10707144,3131.6,3131.5,7.09942987]
[1720838182084,1.10639879,3131.6,3131.5,7.09942987]
[1720838182873,0.33418846,3132.0,3131.7,2.23518]
[1720838183069,4.21148831,3131.9,3131.5,4.62725987]
[1720838183368,3.44010322,3131.8,3131.6,2.23526]
[1720838183567,1.10630576,3131.7,3131.6,2.23526]
[1720838183770,1.77709797,3131.7,3131.6,2.23526]
[1720838186063,1.77709371,3131.7,3131.6,2.23526]
[1720838186385,0.67079221,3131.7,3131.6,2.23526]
[1720838186583,3.44064276,3131.8,3131.6,2.23526]
[1720838186796,1.10629498,3131.7,3131.6,2.23526]
[1720838189867,1.10631098,3131.7,3131.6,2.23526]
[1720838190383,3.44176578,3131.7,3131.6,2.23526]
[1720838190580,4.11272424,3131.7,3131.6,2.23526]
[1720838191169,1.77726944,3131.7,3131.6,2.40176819]
[1720838191388,4.11272424,3131.7,3131.6,2.40176819]
[1720838193171,0.67095846,3131.7,3131.6,2.40176819]
[1720838193367,3.44253553,3131.7,3131.6,0.16650819]
[1720838193605,3.44253553,3131.7,3131.6,2.40177819]
[1720838193804,2.33663456,3131.7,3131.6,2.40177819]
[1720838193982,3.44293212,3131.7,3131.6,2.40177819]
[1720838194164,4.11400722,3131.7,3131.6,2.40177819]
[1720838196510,4.11386092,3131.7,3131.6,2.40177819]
[1720838196684,4.11385518,3131.7,3131.6,2.40177819]
[1720838199695,4.11385518,3131.7,3131.6,0.16650819]
[1720838200182,4.1138628,3131.7,3131.6,0.16649692]
[1720838203613,4.11417632,3131.7,3131.6,0.16649692]
[1720838203816,4.11417629,3131.7,3131.6,0.16649692]
[1720838204011,4.11419493,3131.7,3131.6,0.16649692]
[1720838206720,4.11423921,3131.7,3131.6,0.16649692]
[1720838206921,3.00792174,3131.7,3131.6,0.16649692]
[1720838207088,4.11423692,3131.7,3131.6,0.16649692]
[1720838208404,4.11428408,3131.7,3131.6,0.16649692]
[1720838209224,1.77739028,3131.7,3131.6,0.16649692]
[1720838210302,1.77740917,3131.7,3131.6,0.16649692]
[1720838213722,0.6710751,3131.7,3131.6,0.16649692]
[1720838213910,1.10632712,3131.7,3131.6,0.16649692]
[1720838214428,1.10633079,3131.7,3131.6,0.16649692]
[1720838217032,2.4964,3131.9,3131.6,0.16649692]
[1720838217332,1.10631755,3131.8,3131.6,0.16649692]
[1720838217495,1.10631755,3131.7,3131.6,0.16649692]
[1720838218197,1.10630294,3131.7,3131.6,0.16649692]
[1720838218613,3.44322845,3131.7,3131.6,0.16649692]
[1720838219028,1.10630294,3131.7,3131.6,0.16649692]
[1720838220557,0.55909264,3131.8,3131.6,0.16649692]
[1720838220766,1.10631151,3131.7,3131.6,0.16649692]
[1720838223234,1.10633759,3131.7,3131.6,0.16649692]
[1720838223653,1.1063379,3131.7,3131.6,0.16649692]
[1720838226229,1.10633659,3131.7,3131.6,0.16649692]
[1720838226634,1.10634322,3131.7,3131.6,0.16649692]
[1720838228929,1.10634322,3131.7,3131.3,3.05145]
[1720838229128,0.3869057,3131.7,3131.6,0.16650575]
[1720838229332,1.49324545,3131.7,3131.3,3.05145]
[1720838229533,2.3395271,3131.5,3131.3,3.05145]
[1720838229773,1.10633975,3131.4,3131.3,3.05145]
[1720838230065,0.33418846,3132.0,3131.3,3.05145]
[1720838230227,2.33957243,3131.5,3131.3,3.05145]
[1720838230423,1.10633652,3131.4,3131.3,3.05145]
[1720838231778,1.10633652,3131.4,3131.0,4.67323]
[1720838231965,1.10633652,3131.4,3131.2,0.816]
[1720838231966,3.44590895,3131.4,3131.2,0.816]
[1720838232168,1.10633652,3131.3,3131.2,0.816]
[1720838232812,1.10633652,3131.3,3131.2,3.05156]
[1720838233007,1.10633652,3131.4,3131.2,3.05156]
[1720838233564,1.10634974,3131.3,3131.2,3.05156]
[1720838234211,1.1063513,3131.3,3131.2,3.05156]
[1720838236290,1.1063513,3131.3,3131.2,3.21840435]
[1720838236825,1.10639428,3131.3,3131.2,2.40240435]
[1720838237128,1.10639497,3131.3,3131.2,2.40240435]
[1720838237733,1.10639497,3131.3,3131.2,0.16684435]
[1720838238023,3.44570778,3131.3,3131.2,0.16684435]
[1720838238224,3.44570778,3131.3,3131.0,5.28729]
[1720838238425,2.33931281,3131.3,3131.2,0.16684678]
[1720838238634,3.44573852,3131.3,3131.2,0.16684678]
[1720838239537,1.10642571,3131.3,3131.0,5.28729]
[1720838239745,2.00455158,3131.1,3131.0,3.05163]
[1720838239895,3.11097729,3131.1,3131.0,3.05163]
[1720838240093,2.2871,3131.6,3131.0,3.05163]
[1720838240430,2.00455582,3131.1,3131.0,2.23563]
[1720838240613,3.11096393,3131.1,3131.0,3.05163]
[1720838241937,2.33831872,3131.4,3131.1,2.2356]
[1720838242227,2.2871,3131.6,3131.1,2.2356]
[1720838242228,2.00434397,3131.2,3131.1,2.2356]
[1720838242393,3.1107262,3131.2,3131.1,3.0516]
[1720838243024,1.10638223,3131.2,3131.1,3.0516]
[1720838243221,3.44470095,3131.4,3131.1,3.0516]
[1720838243432,1.10638223,3131.2,3131.1,3.0516]
[1720838243607,1.10640499,3131.2,3131.1,3.0516]
[1720838244419,3.11072608,3131.2,3131.1,3.0516]
[1720838246526,1.10640499,3131.2,3131.1,3.0516]
[1720838247135,1.10642585,3131.2,3131.1,3.0516]
[1720838247634,2.33793359,3131.4,3131.1,3.0516]
[1720838247796,1.10642943,3131.3,3131.1,3.0516]
[1720838247999,1.10642943,3131.2,3131.1,3.0516]
[1720838248423,1.10642943,3131.2,3130.9,2.23571]
[1720838248727,2.00368145,3131.0,3130.9,2.23571]
[1720838248928,3.11011088,3131.0,3130.9,3.05171]
[1720838249323,3.11011088,3131.0,3130.9,5.28748]
[1720838250423,4.65603359,3131.3,3131.0,2.23565]
[1720838250424,4.65557642,3131.3,3131.0,2.23565]
[1720838250627,1.10644374,3131.2,3131.1,0.816]
[1720838251333,1.10644374,3131.2,3131.1,3.21853298]
[1720838252835,3.1098856,3131.2,3131.1,3.21853298]
[1720838253743,2.3374113,3131.5,3131.2,2.23555]
[1720838253915,1.10637829,3131.4,3131.3,0.816]
[1720838256330,3.44378959,3131.4,3131.3,0.816]
[1720838257105,3.44424039,3131.4,3131.3,0.816]
[1720838257345,3.44424199,3131.4,3131.3,0.816]
[1720838260508,0.23374113,3131.5,3131.3,0.816]
[1720838260814,3.44435774,3131.4,3131.3,0.816]
[1720838261014,3.44435213,3131.4,3131.3,0.816]
[1720838261220,3.44435213,3131.4,3131.3,0.98273205]
[1720838263750,3.44440639,3131.4,3131.3,0.98273205]
[1720838263911,1.10639371,3131.4,3131.3,0.98273205]
[1720838264107,3.44455303,3131.4,3131.3,0.98273205]
[1720838266877,3.44455303,3131.4,3131.3,3.21822205]
[1720838267226,2.92645628,3131.9,3131.3,3.21822205]
[1720838267424,2.33837726,3131.4,3131.3,3.21822205]
[1720838267738,3.44476947,3131.4,3131.3,3.21822205]
[1720838270747,4.36653306,3131.8,3131.4,2.23539]
[1720838270924,3.8700635,3131.7,3131.4,2.23539]
[1720838271129,1.10638784,3131.6,3131.5,0.16656518]
[1720838271328,1.10638476,3131.6,3131.5,0.16656518]
[1720838273654,1.10639157,3131.6,3131.5,0.16656518]
[1720838274239,1.10639152,3131.6,3131.5,0.16656518]
[1720838275347,4.36653306,3131.8,3131.5,0.16656518]
[1720838275555,4.60031107,3131.7,3131.5,0.16656518]
[1720838275742,1.10639403,3131.6,3131.5,0.16656518]
[1720838277378,1.10638588,3131.6,3131.5,0.16656518]
[1720838277579,0.72929893,3131.7,3131.5,0.16656518]
[1720838277798,1.10638603,3131.6,3131.5,0.16656518]
[1720838278280,1.10638585,3131.6,3131.5,0.16656518]
[1720838280479,1.70800885,3131.6,3131.5,0.16656518]
[1720838280888,0.601623,3131.6,3131.5,0.16656518]
[1720838281197,1.708009,3131.6,3131.5,0.16656518]
[1720838281380,1.70801022,3131.6,3131.5,0.16656518]
[1720838283793,1.70801037,3131.6,3131.5,0.16656518]
[1720838284295,1.70801031,3131.6,3131.5,0.16656518]
[1720838284698,1.70801031,3131.6,3131.3,0.816]
[1720838284865,2.34097022,3131.4,3131.3,0.816]
[1720838285064,3.44735753,3131.4,3131.3,0.816]
[1720838285675,3.44735753,3131.4,3131.3,3.05149]
[1720838286458,0.72929893,3131.7,3131.3,3.05149]
[1720838286663,2.34065364,3131.4,3131.3,3.05149]
[1720838286977,1.10638946,3131.4,3131.3,3.05149]
[1720838287296,4.36653306,3131.8,3131.3,3.05149]
[1720838287499,2.34072682,3131.4,3131.3,3.05149]
[1720838287673,3.44713743,3131.4,3131.3,3.05149]
[1720838288396,1.10641061,3131.4,3131.3,3.05149]
[1720838289582,3.44712098,3131.4,3131.3,3.05149]
[1720838289968,1.10641061,3131.4,3131.3,3.05149]
[1720838290170,3.44711382,3131.4,3131.3,3.05149]
[1720838290590,1.10641061,3131.4,3131.3,3.05149]
[1720838290907,3.44705953,3131.4,3131.3,3.05149]
[1720838291269,1.10639977,3131.4,3131.3,3.05149]
[1720838291468,3.44713558,3131.4,3131.3,3.05149]
[1720838291695,1.10639977,3131.4,3131.3,3.05149]
[1720838291880,3.44722497,3131.4,3131.3,3.05149]
[1720838292276,3.44722497,3131.4,3131.3,7.77928]
[1720838292503,1.10639977,3131.4,3131.3,8.557208]
[1720838292806,3.11297971,3131.4,3131.3,8.557208]
[1720838293373,1.10639977,3131.4,3131.3,8.557208]
[1720838293573,1.10639977,3131.4,3131.3,8.72394408]
[1720838293768,1.10639977,3131.4,3131.3,8.557208]
[1720838293999,1.10639977,3131.4,3131.3,8.72394408]
[1720838294199,2.34039498,3131.7,3131.5,2.23528]
[1720838294401,1.10626313,3131.6,3131.5,2.23528]
[1720838294632,2.34000866,3131.8,3131.5,3.05128]
[1720838294802,1.10626268,3131.7,3131.5,3.05128]
[1720838295108,1.10626268,3131.6,3131.5,3.05128]
[1720838296091,1.10626268,3131.6,3131.5,3.21784678]
[1720838297279,3.11135703,3131.6,3131.5,3.21784678]
[1720838297580,3.11136676,3131.6,3131.5,3.21784678]
[1720838297981,1.10625407,3131.6,3131.5,3.21784678]
[1720838298511,3.11123384,3131.6,3131.5,3.21784678]
[1720838300932,7.43,3132.0,3131.6,2.23526]
[1720838301132,3.44496798,3131.9,3131.6,2.23526]
[1720838301296,3.44496798,3131.9,3131.7,0.16637337]
[1720838301498,1.10624207,3131.8,3131.7,0.16637337]
[1720838303979,1.10623221,3131.8,3131.7,0.16637337]
[1720838304384,0.98325,3132.0,3131.7,0.16637337]
[1720838304689,2.33794693,3131.8,3131.5,2.23532]
[1720838304891,2.4025,3131.5,3131.4,3.05142]
[1720838305105,3.50888562,3131.5,3131.4,3.05142]
[1720838305484,3.50888562,3131.5,3131.4,2.23542]
[1720838305887,2.4025,3131.5,3131.4,2.23542]
[1720838306239,3.5088925,3131.5,3131.4,2.23542]
[1720838307407,2.4025,3131.5,3131.4,2.23542]
[1720838307605,3.50889367,3131.5,3131.4,2.23542]
[1720838308017,2.4025,3131.5,3131.4,2.23542]
[1720838308204,3.50889367,3131.5,3131.4,2.23542]
[1720838308519,3.50889367,3131.5,3131.2,3.0515]
[1720838308729,2.00391057,3131.3,3131.2,3.0515]
[1720838308926,3.11030424,3131.3,3131.2,3.0515]
[1720838311111,3.11030424,3131.3,3131.2,3.21829257]
[1720838311432,2.4025,3131.5,3131.2,3.21829257]
[1720838311607,2.00425519,3131.3,3131.2,3.21829257]
[1720838311816,3.11064901,3131.3,3131.2,3.21829257]
[1720838314918,2.3844,3131.7,3131.2,3.21829257]
[1720838315106,3.4449493,3131.6,3131.4,0.816]
[1720838315307,1.10639742,3131.5,3131.4,0.816]
[1720838315652,1.10638737,3131.5,3131.4,0.816]
[1720838317982,1.10638604,3131.5,3131.4,0.816]
[1720838318478,1.10638811,3131.5,3131.4,0.816]
[1720838319625,3.44489352,3131.5,3131.4,0.816]
[1720838321874,0.60677335,3131.5,3131.2,0.816]
[1720838322159,3.44481537,3131.5,3131.4,0.816]
[1720838322335,2.21290292,3131.5,3131.4,0.816]
[1720838322938,4.21741811,3131.5,3131.4,0.816]
[1720838323660,2.21290292,3131.5,3131.4,0.816]
[1720838325226,2.21278101,3131.5,3131.4,0.816]
[1720838325661,1.10644925,3131.5,3131.4,0.816]
[1720838325830,2.21278066,3131.5,3131.4,0.816]
[1720838326155,2.21278066,3131.5,3131.4,0.98263211]
[1720838326461,2.21278066,3131.5,3131.4,5.59175211]
[1720838328165,1.10644925,3131.5,3131.4,5.59175211]
[1720838328337,2.21278108,3131.5,3131.4,5.59175211]
[1720838328536,1.10644925,3131.5,3131.4,5.59175211]
[1720838328747,2.21278089,3131.5,3131.4,5.59175211]
[1720838332073,1.10644925,3131.5,3131.4,5.59175211]
[1720838332256,2.21278079,3131.5,3131.4,5.59175211]
[1720838332955,4.21740916,3131.5,3131.4,7.82717211]
[1720838333160,4.21740916,3131.5,3131.4,8.60988932]